fUSD/lending_fUSD_20241003
["ID","MTS","AMOUNT","RATE_DAILY","PERIOD"]
[339784602,1727987451913,-151.0,0.00032876,7]
[339784603,1727987451922,-151.0,0.00032876,7]
[339784604,1727987451932,-151.0,0.00032876,7]
[339784605,1727987451941,-151.0,0.00032876,7]
[339784606,1727987451950,-242.666669,0.00032876,7]
[339784607,1727987451960,-242.666669,0.00032876,7]
[339784608,1727987451969,-151.0,0.00032876,7]
[339784609,1727987451979,-500.0,0.00032876,120]
[339784610,1727987451988,-151.0,0.00032876,7]
[339784611,1727987451997,-151.0,0.00032876,7]
[339784612,1727987452007,-258.39,0.00032876,120]
[339784613,1727987452016,-280.389785,0.00032876,7]
[339784614,1727987452026,-280.389785,0.00032876,7]
[339784615,1727987452035,-501.83749015,0.00032876,120]
[339784616,1727987452044,-1830.04,0.00032876,120]
[339784617,1727987452053,-500.0,0.00032876,120]
[339784618,1727987452062,-500.0,0.00032876,120]
[339784619,1727987452071,-731.74,0.00032876,120]
[339784620,1727987452081,-1465.14,0.00032876,120]
[339784621,1727987452090,-500.0,0.00032876,120]
[339784622,1727987452100,-500.0,0.00032876,120]
[339784623,1727987452109,-150.0,0.00032876,120]
[339784624,1727987452120,-500.0,0.00032876,120]
[339784625,1727987452129,-500.0,0.00032876,120]
[339784626,1727987452138,-158.79794457,0.00032876,120]
[339784627,1727987452147,-500.0,0.00032876,120]
[339784628,1727987452157,-1375.31,0.00032876,120]
[339784629,1727987452166,-500.0,0.00032876,120]
[339784630,1727987452175,-500.0,0.00032876,120]
[339784631,1727987452185,-668.57,0.00032876,120]
[339784632,1727987452194,-500.0,0.00032876,120]
[339784633,1727987452203,-500.0,0.00032876,120]
[339784634,1727987452213,-500.0,0.00032876,120]
[339784635,1727987452222,-500.0,0.00032876,120]
[339784636,1727987452231,-500.0,0.00032876,120]
[339784637,1727987452241,-1062.68,0.00032876,120]
[339784638,1727987452251,-500.0,0.00032876,120]
[339784639,1727987452260,-1108.65,0.00032876,120]
[339784640,1727987452270,-1239.66,0.00032876,120]
[339784641,1727987452279,-1917.75,0.00032876,120]
[339784642,1727987452289,-749.5,0.00032876,120]
[339784643,1727987452299,-500.0,0.00032876,120]
[339784644,1727987452309,-1219.3,0.00032876,120]
[339784645,1727987452318,-1706.35,0.00032876,120]
[339784646,1727987452328,-500.0,0.00032876,120]
[339784647,1727987452337,-1816.28,0.00032876,120]
[339784648,1727987452347,-608.59,0.00032876,120]
[339784649,1727987452356,-500.0,0.00032876,120]
[339784650,1727987452366,-500.0,0.00032876,120]
[339784651,1727987452376,-500.0,0.00032876,120]
[339784652,1727987452386,-500.0,0.00032876,120]
[339784653,1727987452395,-688.2,0.00032876,120]
[339784654,1727987452404,-818.32,0.00032876,120]
[339784655,1727987452414,-500.0,0.00032876,120]
[339784656,1727987452423,-500.0,0.00032876,120]
[339784657,1727987452432,-2173.75,0.00032876,120]
[339784658,1727987452442,-721.06,0.00032876,120]
[339784659,1727987452451,-2649.5,0.00032876,120]
[339784660,1727987452461,-500.0,0.00032876,120]
[339784661,1727987452470,-500.0,0.00032876,120]
[339784662,1727987452480,-394.08932515,0.00032876,120]
[339784663,1727987452490,-500.0,0.00032876,120]
[339784664,1727987452499,-500.0,0.00032876,120]
[339784665,1727987452508,-500.0,0.00032876,120]
[339784666,1727987452517,-500.0,0.00032876,120]
[339784667,1727987452527,-500.0,0.00032876,120]
[339784668,1727987452536,-952.32,0.00032876,120]
[339784669,1727987452546,-500.0,0.00032876,15]
[339784670,1727987452556,-508.75,0.00032876,120]
[339784671,1727987452566,-500.0,0.00032876,120]
[339784672,1727987452575,-500.0,0.00032876,120]
[339784673,1727987452585,-2782.16,0.00032876,120]
[339784674,1727987452594,-500.0,0.00032876,120]
[339784675,1727987452602,-583.78604525,0.00032876,120]
[339784676,1727987452611,-500.0,0.00032876,120]
[339784677,1727987452621,-500.0,0.00032876,120]
[339784678,1727987452630,-500.0,0.00032876,120]
[339784679,1727987452639,-500.0,0.00032876,120]
[339784680,1727987452649,-799.66,0.00032876,120]
[339784681,1727987452658,-528.54,0.00032876,120]
[339784682,1727987452667,-500.0,0.00032876,120]
[339784683,1727987452676,-500.0,0.00032876,120]
[339784684,1727987452686,-1116.48,0.00032876,120]
[339784685,1727987452695,-500.0,0.00032876,120]
[339784686,1727987452704,-500.0,0.00032876,120]
[339784687,1727987452714,-500.0,0.00032876,120]
[339784688,1727987452723,-500.0,0.00032876,120]
[339784689,1727987452732,-500.0,0.00032876,120]
[339784690,1727987452741,-500.0,0.00032876,120]
[339784691,1727987452751,-667.6,0.00032876,120]
[339784692,1727987452760,-500.0,0.00032876,120]
[339784693,1727987452769,-516.86,0.00032876,120]
[339784694,1727987452779,-500.0,0.00032876,120]
[339784695,1727987452788,-577.36,0.00032876,120]
[339784696,1727987452798,-500.0,0.00032876,120]
[339784697,1727987452807,-2275.0,0.00032876,120]
[339784698,1727987452816,-500.0,0.00032876,120]
[339784699,1727987452829,-1181.76,0.00032876,120]
[339784700,1727987452838,-1059.01,0.00032876,120]
[339784701,1727987452847,-500.0,0.00032876,120]
[339784702,1727987452856,-678.32,0.00032876,120]
[339784703,1727987452866,-500.0,0.00032876,120]
[339784704,1727987452876,-500.0,0.00032876,120]
[339784705,1727987452885,-908.96,0.00032876,120]
[339784706,1727987452895,-806.47,0.00032876,120]
[339784707,1727987452905,-500.0,0.00032876,120]
[339784708,1727987452915,-1850.2,0.00032876,120]
[339784709,1727987452924,-500.0,0.00032876,120]
[339784710,1727987452934,-500.0,0.00032876,120]
[339784711,1727987452943,-500.0,0.00032876,120]
[339784712,1727987452953,-500.0,0.00032876,120]
[339784713,1727987452963,-532.65,0.00032876,120]
[339784714,1727987452973,-500.0,0.00032876,120]
[339784715,1727987452983,-500.0,0.00032876,120]
[339784716,1727987452993,-500.0,0.00032876,120]
[339784717,1727987453003,-500.0,0.00032876,120]
[339784718,1727987453014,-951.98,0.00032876,120]
[339784719,1727987453023,-3113.1,0.00032876,120]
[339784720,1727987453034,-500.0,0.00032876,120]
[339784721,1727987453044,-1578.27,0.00032876,120]
[339784722,1727987453054,-507.58416429,0.00032876,120]
[339784723,1727987453063,-952.18,0.00032876,120]
[339784724,1727987453073,-799.85,0.00032876,120]
[339784725,1727987453083,-500.0,0.00032876,120]
[339784726,1727987453092,-708.6,0.00032876,120]
[339784727,1727987453101,-584.82,0.00032876,120]
[339784728,1727987453110,-500.0,0.00032876,120]
[339784729,1727987453120,-560.83,0.00032876,120]
[339784730,1727987453130,-500.0,0.00032876,120]
[339784731,1727987453139,-610.78,0.00032876,120]
[339784732,1727987453148,-500.0,0.00032876,120]
[339784733,1727987453157,-1249.01,0.00032876,120]
[339784734,1727987453167,-500.0,0.00032876,120]
[339784735,1727987453176,-500.0,0.00032876,120]
[339784736,1727987453185,-500.0,0.00032876,120]
[339784737,1727987453195,-500.0,0.00032876,120]
[339784738,1727987453204,-151.0,0.00032876,7]
[339784739,1727987453214,-500.0,0.00032876,120]
[339784740,1727987453223,-1225.26,0.00032876,120]
[339784741,1727987453232,-151.0,0.00032876,7]
[339784742,1727987453241,-500.0,0.00032876,120]
[339784743,1727987453251,-500.0,0.00032876,120]
[339784744,1727987453260,-151.0,0.00032876,7]
[339784745,1727987453269,-911.79,0.00032876,120]
[339784746,1727987453278,-817.82,0.00032876,120]
[339784747,1727987453288,-500.0,0.00032876,120]
[339784748,1727987453297,-500.0,0.00032876,120]
[339784749,1727987453307,-500.0,0.00032876,120]
[339784750,1727987453317,-500.0,0.00032876,120]
[339784751,1727987453327,-517.59,0.00032876,120]
[339784752,1727987453336,-1292.49,0.00032876,7]
[339784753,1727987453345,-500.0,0.00032876,120]
[339784754,1727987453354,-500.0,0.00032876,120]
[339784755,1727987453364,-500.0,0.00032876,120]
[339784756,1727987453374,-500.0,0.00032876,120]
[339784757,1727987453383,-762.72,0.00032876,120]
[339784758,1727987453392,-1396.71,0.00032876,120]
[339784759,1727987453401,-1184.87,0.00032876,120]
[339784760,1727987453411,-1701.57,0.00032876,120]
[339784761,1727987453420,-714.2,0.00032876,120]
[339784762,1727987453429,-500.0,0.00032876,120]
[339784763,1727987453439,-500.0,0.00032876,120]
[339784764,1727987453448,-500.0,0.00032876,120]
[339784765,1727987453458,-1713.42,0.00032876,120]
[339784766,1727987453467,-676.51,0.00032876,120]
[339784767,1727987453476,-543.4,0.00032876,120]
[339784768,1727987453486,-675.57,0.00032876,120]
[339784769,1727987453495,-615.69,0.00032876,120]
[339784770,1727987453504,-822.0,0.00032876,120]
[339784771,1727987453514,-500.0,0.00032876,120]
[339784772,1727987453523,-781.4,0.00032876,120]
[339784773,1727987453533,-500.0,0.00032876,120]
[339784774,1727987453542,-500.0,0.00032876,120]
[339784775,1727987453551,-500.0,0.00032876,120]
[339784776,1727987453561,-747.69,0.00032876,120]
[339784777,1727987453570,-151.0,0.00032876,7]
[339784778,1727987453579,-500.0,0.00032876,120]
[339784779,1727987453588,-617.77,0.00032876,120]
[339784780,1727987453597,-500.0,0.00032876,120]
[339784781,1727987453607,-911.34,0.00032876,120]
[339784782,1727987453616,-500.0,0.00032876,120]
[339784783,1727987453627,-500.0,0.00032876,120]
[339784784,1727987453636,-500.0,0.00032876,120]
[339784785,1727987453646,-1099.61,0.00032876,120]
[339784786,1727987453655,-500.0,0.00032876,120]
[339784787,1727987453664,-500.0,0.00032876,120]
[339784788,1727987453673,-500.0,0.00032876,120]
[339784789,1727987453682,-1245.73,0.00032876,120]
[339784790,1727987453691,-605.0,0.00032876,120]
[339784791,1727987453701,-614.52,0.00032876,120]
[339784792,1727987453710,-570.35,0.00032876,120]
[339784793,1727987453720,-806.75,0.00032876,120]
[339784794,1727987453730,-500.0,0.00032876,120]
[339784795,1727987453739,-761.4,0.00032876,120]
[339784796,1727987453748,-500.0,0.00032876,120]
[339784797,1727987453757,-500.0,0.00032876,120]
[339784798,1727987453766,-500.0,0.00032876,120]
[339784799,1727987453775,-1016.56,0.00032876,120]
[339784800,1727987453784,-500.0,0.00032876,120]
[339784801,1727987453794,-500.0,0.00032876,120]
[339784802,1727987453803,-500.0,0.00032876,120]
[339784803,1727987453813,-908.19,0.00032876,120]
[339784804,1727987453822,-500.0,0.00032876,120]
[339784805,1727987453837,-500.0,0.00032876,120]
[339784806,1727987453846,-500.0,0.00032876,120]
[339784807,1727987453856,-20000.0,0.00032876,2]
[339784808,1727987453866,-500.0,0.00032876,120]
[339784809,1727987453877,-650.02,0.00032876,120]
[339784810,1727987453886,-2907.54,0.00032876,120]
[339784811,1727987453895,-500.0,0.00032876,120]
[339784812,1727987453908,-1955.84,0.00032876,120]
[339784813,1727987453919,-666.23,0.00032876,120]
[339784814,1727987453929,-500.0,0.00032876,5]
[339784815,1727987453939,-1768.990651,0.00032876,7]
[339784816,1727987453949,-500.0,0.00032876,120]
[339784817,1727987453959,-619.0,0.00032876,120]
[339784818,1727987453968,-1768.990651,0.00032876,7]
[339784819,1727987453978,-500.0,0.00032876,120]
[339784820,1727987453987,-1476.07,0.00032876,120]
[339784821,1727987453998,-500.0,0.00032876,120]
[339784822,1727987454007,-500.0,0.00032876,120]
[339784823,1727987454017,-200.0,0.00032876,7]
[339784824,1727987454027,-580.92,0.00032876,120]
[339784825,1727987454037,-500.0,0.00032876,120]
[339784826,1727987454046,-664.13,0.00032876,120]
[339784827,1727987454055,-559.23,0.00032876,120]
[339784828,1727987454065,-500.0,0.00032876,120]
[339784829,1727987454074,-500.0,0.00032876,120]
[339784830,1727987454083,-682.12,0.00032876,120]
[339784831,1727987454092,-662.07,0.00032876,120]
[339784832,1727987454101,-500.0,0.00032876,120]
[339784833,1727987454111,-500.0,0.00032876,120]
[339784834,1727987454121,-500.0,0.00032876,120]
[339784835,1727987454130,-500.0,0.00032876,120]
[339784836,1727987454139,-1017.64,0.00032876,120]
[339784837,1727987454149,-1843.32,0.00032876,120]
[339784838,1727987454159,-929.85,0.00032876,120]
[339784839,1727987454168,-500.0,0.00032876,120]
[339784840,1727987454178,-903.96,0.00032876,120]
[339784841,1727987454187,-500.0,0.00032876,120]
[339784842,1727987454196,-500.0,0.00032876,120]
[339784843,1727987454205,-1244.9,0.00032876,120]
[339784844,1727987454215,-500.0,0.00032876,120]
[339784845,1727987454224,-2059.5,0.00032876,120]
[339784846,1727987454233,-1208.85,0.00032876,120]
[339784847,1727987454242,-500.0,0.00032876,120]
[339784848,1727987454251,-151.0,0.00032876,7]
[339784849,1727987454261,-1392.18,0.00032876,120]
[339784850,1727987454270,-500.0,0.00032876,120]
[339784851,1727987454280,-1754.22,0.00032876,120]
[339784852,1727987454289,-500.0,0.00032876,120]
[339784853,1727987454299,-500.0,0.00032876,120]
[339784854,1727987454308,-3096.26,0.00032876,120]
[339784855,1727987454318,-838.34,0.00032876,120]
[339784856,1727987454328,-500.0,0.00032876,120]
[339784857,1727987454337,-767.37,0.00032876,120]
[339784858,1727987454346,-801.012603,0.00032876,7]
[339784859,1727987454356,-1262.93,0.00032876,120]
[339784860,1727987454365,-607.71533395,0.00032876,120]
[339784861,1727987454376,-500.0,0.00032876,120]
[339784862,1727987454385,-500.0,0.00032876,120]
[339784863,1727987454395,-508.7817658,0.00032876,120]
[339784864,1727987454404,-801.012603,0.00032876,7]
[339784865,1727987454414,-900.49,0.00032876,120]
[339784866,1727987454423,-871.88,0.00032876,120]
[339784867,1727987454434,-1915.72,0.00032876,120]
[339784868,1727987454443,-546.33,0.00032876,120]
[339784869,1727987454452,-219.51358692,0.00032876,120]
[339784870,1727987454461,-500.0,0.00032876,120]
[339784871,1727987454471,-542.05,0.00032876,120]
[339784872,1727987454480,-500.0,0.00032876,120]
[339784873,1727987454489,-1246.58,0.00032876,120]
[339784874,1727987454498,-755.2,0.00032876,120]
[339784875,1727987454507,-500.0,0.00032876,120]
[339784876,1727987454516,-515.39,0.00032876,120]
[339784877,1727987454526,-500.0,0.00032876,120]
[339784878,1727987454535,-1449.61,0.00032876,120]
[339784879,1727987454545,-500.0,0.00032876,120]
[339784880,1727987454554,-615.97,0.00032876,120]
[339784881,1727987454563,-500.0,0.00032876,120]
[339784882,1727987454573,-500.0,0.00032876,120]
[339784883,1727987454582,-500.0,0.00032876,2]
[339784884,1727987454592,-500.0,0.00032876,120]
[339784885,1727987454602,-828.98,0.00032876,120]
[339784886,1727987454611,-522.48,0.00032876,120]
[339784887,1727987454621,-500.0,0.00032876,120]
[339784888,1727987454630,-500.0,0.00032876,120]
[339784889,1727987454639,-769.93,0.00032876,120]
[339784890,1727987454650,-500.0,0.00032876,120]
[339784891,1727987454660,-360.67644064,0.00032876,120]
[339784892,1727987454671,-1535.42,0.00032876,120]
[339784893,1727987454681,-692.01,0.00032876,120]
[339784894,1727987454690,-500.0,0.00032876,120]
[339784895,1727987454700,-500.0,0.00032876,120]
[339784896,1727987454710,-500.0,0.00032876,120]
[339784897,1727987454721,-500.0,0.00032876,120]
[339784898,1727987454731,-500.0,0.00032876,120]
[339784899,1727987454741,-617.57,0.00032876,120]
[339784900,1727987454750,-500.0,0.00032876,120]
[339784901,1727987454761,-500.0,0.00032876,120]
[339784902,1727987454771,-500.0,0.00032876,120]
[339784903,1727987454781,-162.706573,0.00032876,7]
[339784904,1727987454790,-775.222596,0.00032876,7]
[339784905,1727987454800,-1322.47,0.00032876,120]
[339784906,1727987454810,-678.3,0.00032876,120]
[339784907,1727987454820,-3041.51,0.00032876,120]
[339784908,1727987454834,-1088.33,0.00032876,120]
[339784909,1727987454844,-775.222596,0.00032876,7]
[339784910,1727987454853,-685.28,0.00032876,120]
[339784911,1727987454863,-500.0,0.00032876,120]
[339784912,1727987454873,-500.0,0.00032876,120]
[339784913,1727987454884,-809.97,0.00032876,120]
[339784914,1727987454893,-617.35,0.00032876,120]
[339784915,1727987454902,-500.0,0.00032876,120]
[339784916,1727987454912,-500.0,0.00032876,120]
[339784917,1727987454922,-500.0,0.00032876,120]
[339784918,1727987454931,-500.0,0.00032876,120]
[339784919,1727987454940,-504.49,0.00032876,120]
[339784920,1727987454949,-1000.0,0.00032876,120]
[339784921,1727987454959,-2582.55,0.00032876,14]
[339784922,1727987454968,-821.22,0.00032876,120]
[339784923,1727987454977,-2036.76,0.00032876,2]
[339784924,1727987454986,-500.0,0.00032876,120]
[339784925,1727987454995,-500.0,0.00032876,120]
[339784926,1727987455005,-500.0,0.00032876,120]
[339784927,1727987455014,-752.83,0.00032876,120]
[339784928,1727987455023,-1192.92,0.00032876,120]
[339784929,1727987455032,-500.0,0.00032876,120]
[339784930,1727987455042,-500.0,0.00032876,120]
[339784931,1727987455051,-500.0,0.00032876,120]
[339784932,1727987455060,-2184.089244,0.00032876,7]
[339784933,1727987455070,-500.0,0.00032876,120]
[339784934,1727987455079,-1822.29,0.00032876,120]
[339784935,1727987455088,-696.33,0.00032876,120]
[339784936,1727987455097,-500.0,0.00032876,120]
[339784937,1727987455107,-1595.23,0.00032876,120]
[339784938,1727987455116,-10000.0,0.00032876,7]
[339784939,1727987455130,-500.0,0.00032876,120]
[339784940,1727987455141,-1676.96,0.00032876,120]
[339784941,1727987455150,-2184.089244,0.00032876,7]
[339784942,1727987455159,-602.51,0.00032876,120]
[339784943,1727987455167,-500.0,0.00032876,120]
[339784944,1727987455176,-1430.65,0.00032876,120]
[339784945,1727987455185,-500.0,0.00032876,120]
[339784946,1727987455194,-500.0,0.00032876,120]
[339784947,1727987455203,-10000.0,0.00032876,7]
[339784948,1727987455212,-1022.58,0.00032876,120]
[339784949,1727987455221,-534.34,0.00032876,120]
[339784950,1727987455231,-572.51,0.00032876,120]
[339784951,1727987455240,-500.0,0.00032876,120]
[339784952,1727987455249,-500.0,0.00032876,120]
[339784953,1727987455258,-743.36,0.00032876,120]
[339784954,1727987455267,-500.0,0.00032876,120]
[339784955,1727987455276,-10000.0,0.00032876,7]
[339784956,1727987455285,-722.75,0.00032876,120]
[339784957,1727987455295,-734.12,0.00032876,120]
[339784958,1727987455303,-500.0,0.00032876,120]
[339784959,1727987455313,-2933.87,0.00032876,120]
[339784960,1727987455322,-500.0,0.00032876,120]
[339784961,1727987455331,-891.75,0.00032876,120]
[339784962,1727987455340,-500.0,0.00032876,120]
[339784963,1727987455349,-10000.0,0.00032876,7]
[339784964,1727987455358,-500.0,0.00032876,120]
[339784965,1727987455367,-500.0,0.00032876,120]
[339784966,1727987455378,-500.0,0.00032876,120]
[339784967,1727987455387,-10000.0,0.00032876,7]
[339784968,1727987455396,-500.0,0.00032876,120]
[339784969,1727987455405,-830.44,0.00032876,120]
[339784970,1727987455414,-2736.92,0.00032876,120]
[339784971,1727987455423,-2840.63,0.00032876,120]
[339784972,1727987455432,-1668.6,0.00032876,120]
[339784973,1727987455441,-963.2,0.00032876,120]
[339784974,1727987455450,-3064.64,0.00032876,120]
[339784975,1727987455460,-500.0,0.00032876,120]
[339784976,1727987455469,-500.0,0.00032876,120]
[339784977,1727987455478,-500.0,0.00032876,120]
[339784978,1727987455487,-500.0,0.00032876,120]
[339784979,1727987455496,-895.53,0.00032876,120]
[339784980,1727987455506,-500.0,0.00032876,120]
[339784981,1727987455515,-500.0,0.00032876,120]
[339784982,1727987455524,-594.854743,0.00032876,7]
[339784983,1727987455533,-603.25,0.00032876,120]
[339784984,1727987455542,-893.66,0.00032876,120]
[339784985,1727987455552,-1265.22,0.00032876,120]
[339784986,1727987455561,-594.854743,0.00032876,7]
[339784987,1727987455570,-648.93,0.00032876,120]
[339784988,1727987455579,-702.69,0.00032876,120]
[339784989,1727987455588,-625.95,0.00032876,120]
[339784990,1727987455597,-912.75,0.00032876,120]
[339784991,1727987455606,-500.0,0.00032876,120]
[339784992,1727987455617,-500.0,0.00032876,120]
[339784993,1727987455731,-500.0,0.00032876,120]
[339784994,1727987455743,-500.0,0.00032876,120]
[339784995,1727987455753,-500.0,0.00032876,120]
[339784996,1727987455762,-500.0,0.00032876,120]
[339784997,1727987455772,-500.0,0.00032876,120]
[339784998,1727987455781,-589.87,0.00032876,120]
[339784999,1727987455791,-500.0,0.00032876,120]
[339785000,1727987455800,-904.15,0.00032876,120]
[339785001,1727987455809,-809.38,0.00032876,120]
[339785002,1727987455818,-500.0,0.00032876,120]
[339785003,1727987455830,-500.0,0.00032876,120]
[339785004,1727987455839,-1583.67,0.00032876,120]
[339785005,1727987455848,-500.0,0.00032876,120]
[339785006,1727987455858,-500.0,0.00032876,120]
[339785007,1727987455867,-2849.48,0.00032876,120]
[339785008,1727987455877,-1559.78,0.00032876,120]
[339785009,1727987455886,-500.0,0.00032876,2]
[339785010,1727987455895,-526.9,0.00032876,120]
[339785011,1727987455906,-500.0,0.00032876,120]
[339785012,1727987455916,-266.11285989,0.00032876,120]
[339785013,1727987455925,-522.66,0.00032876,120]
[339785014,1727987455934,-887.97,0.00032876,120]
[339785015,1727987455943,-608.69,0.00032876,120]
[339785016,1727987455952,-236.86085585,0.00032876,120]
[339785017,1727987455961,-1196.23,0.00032876,120]
[339785018,1727987455970,-500.0,0.00032876,120]
[339785019,1727987455979,-211.97650156,0.00032876,120]
[339785020,1727987455988,-871.817102,0.00032876,7]
[339785021,1727987455997,-1435.23,0.00032876,120]
[339785022,1727987456006,-235.28259004,0.00032876,120]
[339785023,1727987456016,-151.0,0.00032876,7]
[339785024,1727987456025,-1891.17,0.00032876,120]
[339785025,1727987456034,-734.62,0.00032876,120]
[339785026,1727987456043,-871.817102,0.00032876,7]
[339785027,1727987456053,-500.0,0.00032876,5]
[339785028,1727987456062,-1907.44,0.00032876,120]
[339785029,1727987456071,-954.92,0.00032876,30]
[339785030,1727987456080,-1389.631609,0.00032876,7]
[339785031,1727987456089,-760.37,0.00032876,120]
[339785032,1727987456098,-500.0,0.00032876,120]
[339785033,1727987456107,-1267.83,0.00032876,120]
[339785034,1727987456117,-500.0,0.00032876,120]
[339785035,1727987456128,-500.0,0.00032876,120]
[339785036,1727987456137,-1389.631609,0.00032876,7]
[339785037,1727987456147,-507.69393477,0.00032876,120]
[339785038,1727987456156,-500.0,0.00032876,120]
[339785039,1727987456165,-3152.28,0.00032876,120]
[339785040,1727987456175,-500.0,0.00032876,120]
[339785041,1727987456184,-2240.67,0.00032876,120]
[339785042,1727987456193,-692.31,0.00032876,120]
[339785043,1727987456202,-500.0,0.00032876,120]
[339785044,1727987456212,-4273.85,0.00032876,2]
[339785045,1727987456221,-1375.15,0.00032876,120]
[339785046,1727987456231,-566.42,0.00032876,120]
[339785047,1727987456240,-500.0,0.00032876,120]
[339785048,1727987456250,-1352.94,0.00032876,120]
[339785049,1727987456260,-2143.59,0.00032876,120]
[339785050,1727987456269,-197.419055,0.00032876,7]
[339785051,1727987456278,-500.0,0.00032876,120]
[339785052,1727987456287,-500.0,0.00032876,120]
[339785053,1727987456297,-197.419055,0.00032876,7]
[339785054,1727987456306,-366.010612,0.00032876,7]
[339785055,1727987456316,-500.0,0.00032876,120]
[339785056,1727987456325,-500.0,0.00032876,120]
[339785057,1727987456334,-2552.25,0.00032876,120]
[339785058,1727987456343,-500.0,0.00032876,120]
[339785059,1727987456352,-807.0,0.00032876,120]
[339785060,1727987456361,-366.010612,0.00032876,7]
[339785061,1727987456370,-1929.43,0.00032876,120]
[339785062,1727987456380,-500.0,0.00032876,120]
[339785063,1727987456390,-500.0,0.00032876,120]
[339785064,1727987456400,-687.7,0.00032876,120]
[339785065,1727987456409,-500.0,0.00032876,120]
[339785066,1727987456418,-427.86891673,0.00032876,120]
[339785067,1727987456427,-500.0,0.00032876,120]
[339785068,1727987456437,-685.66,0.00032876,120]
[339785069,1727987456446,-500.0,0.00032876,120]
[339785070,1727987456455,-500.0,0.00032876,120]
[339785071,1727987456464,-426.78146,0.00032876,7]
[339785072,1727987456474,-500.0,0.00032876,120]
[339785073,1727987456483,-500.0,0.00032876,120]
[339785074,1727987456492,-1124.73,0.00032876,120]
[339785075,1727987456502,-500.0,0.00032876,120]
[339785076,1727987456511,-687.49,0.00032876,120]
[339785077,1727987456520,-426.78146,0.00032876,7]
[339785078,1727987456529,-1267.04,0.00032876,120]
[339785079,1727987456539,-1073.96,0.00032876,120]
[339785080,1727987456548,-500.0,0.00032876,120]
[339785081,1727987456558,-515.88,0.00032876,120]
[339785082,1727987456567,-500.0,0.00032876,120]
[339785083,1727987456576,-3842.317748,0.00032876,7]
[339785084,1727987456586,-924.47,0.00032876,120]
[339785085,1727987456595,-500.0,0.00032876,120]
[339785086,1727987456607,-3529.62,0.00032876,120]
[339785087,1727987456617,-500.0,0.00032876,120]
[339785088,1727987456627,-500.0,0.00032876,120]
[339785089,1727987456636,-3842.317748,0.00032876,7]
[339785090,1727987456645,-500.0,0.00032876,120]
[339785091,1727987456654,-500.0,0.00032876,120]
[339785092,1727987456663,-2122.92,0.00032876,120]
[339785093,1727987456672,-1443.8,0.00032876,120]
[339785094,1727987456681,-500.0,0.00032876,120]
[339785095,1727987456690,-598.1,0.00032876,120]
[339785096,1727987456699,-583.93,0.00032876,120]
[339785097,1727987456708,-1130.17,0.00032876,120]
[339785098,1727987456718,-500.0,0.00032876,120]
[339785099,1727987456727,-500.0,0.00032876,120]
[339785100,1727987456736,-500.0,0.00032876,120]
[339785101,1727987456746,-500.0,0.00032876,120]